Cogmind - Beta 13 @@@ ROGUE MODE // 2024.03.02 @ 20:39:08 Player: Baxter Result: Destroyed by D-53 Grenadier with Mini Grenade Launcher Performance ------------- Evolutions (0) 0 Regions Visited (2) 400 Robots Destroyed (31) 155 Value Destroyed (665) 665 Prototype IDs (0) 0 Alien Tech Used (0) 0 Bonus (0) 0 TOTAL SCORE: 1220 Bonus ------- None Cogmind --------- Core Integrity 0/250 Matter 300/300 Energy 124/125 System Corruption 1% Temperature Cool (0) Movement Rolling (110) Ox2 Location -10/Mines Parts ------- > --- POWER (1) -------- Light Ion Engine > --- PROPULSION (2) --- Aluminum Leg Wheel > --- UTILITY (2) ------ Large Storage Unit Signal Interpreter > --- WEAPON (2) ------- Light Assault Rifle Light Assault Rifle > --- INVENTORY (15) --- Ion Engine Light Ion Engine Light Ion Engine Wheel Improved Heat Sink High-capacity Matter Pod (200) Visual Processing Unit Sensor Array Improved Terrain Scanner Terrain Scan Processor Light Assault Rifle Light Assault Rifle Grenade Launcher Mining Laser Peak State ------------ > --- POWER ------------ Light Ion Engine > --- PROPULSION ------- Aluminum Leg Wheel > --- UTILITY ---------- Large Storage Unit Signal Interpreter > --- WEAPON ----------- Assault Rifle Light Assault Rifle > --- INVENTORY -------- Ion Engine Light Ion Engine Light Ion Engine Aluminum Leg Compact Wheel Improved Heat Sink High-capacity Matter Pod Visual Processing Unit Sensor Array Improved Terrain Scanner Light Assault Rifle Light Assault Rifle Light Assault Rifle Grenade Launcher Mining Laser [Rating: 9] Favorites ----------- Power Light Ion Engine Engine Light Ion Engine Propulsion Aluminum Leg Treads Light Treads Leg Aluminum Leg Wheel Wheel Utility Signal Interpreter Storage Large Storage Unit Processor Signal Interpreter Weapon EM Pulse Gun Energy Gun EM Pulse Gun Energy Cannon Beam Cannon Ballistic Gun Assault Rifle Launcher Grenade Launcher Special Weapon Mining Laser Build | -11 -10 -10 ------- Run | Yrd Mat Min Slots Evolved . | . . . Power . | . . . Propulsion . | . . . Utility . | . . . Weapon . | . . . Parts Attached 42 | 6 24 12 Power 7 | 1 4 2 Engine 7 | 1 4 2 Core . | . . . Reactor . | . . . Propulsion 14 | 2 9 3 Treads 4 | 1 3 . Leg 4 | . 3 1 Wheel 6 | 1 3 2 Hover . | . . . Flight . | . . . Utility 6 | 1 5 . Device . | . . . Storage 4 | 1 3 . Processor 2 | . 2 . Hackware . | . . . Protection . | . . . Artifact . | . . . Weapon 15 | 2 6 7 Energy Gun 3 | 2 1 . Energy Cannon 3 | . 2 1 Ballistic Gun 5 | . 1 4 Ballistic Cannon . | . . . Launcher 2 | . . 2 Special Weapon 2 | . 2 . Impact Weapon . | . . . Slashing Weapon . | . . . Piercing Weapon . | . . . Special Melee Weapon . | . . . Unidentified Prototypes . | . . . Parts Lost 4 | . 2 2 Power 2 | . 1 1 Propulsion . | . . . Utility 1 | . 1 . Weapon 1 | . . 1 Highest Loss Streak 2 | . 1 2 To Critical Strikes . | . . . Average Slot Usage (%) 95 | . 93 99 Engine 11 | . 9 13 Treads 2 | . 4 . Leg 12 | . 11 14 Wheel 12 | . 10 14 Storage 14 | . 15 14 Processor 12 | . 12 14 Energy Gun 10 | . 16 . Energy Cannon 6 | . 5 8 Ballistic Gun 10 | . 4 18 Naked Turns . | . . . Heaviest Build 54 | 13 54 28 Greatest Support 26 | 20 26 10 Greatest Overweight (x) 5 | 1 5 2 Average Overweight (x) 1 | . 1 2 Largest Inventory Capacity 20 | 8 20 15 Average Capacity 14 | 7 14 15 Most Carried 15 | 7 15 15 Average Carried 12 | 4 11 14 Final Capacity 15 | 8 15 15 Final Carried 15 | 6 15 14 Class Distribution -------------------- 92% | Mutant 7% | Scavenger-Mutant Dominant Class ---------------- Mutant | -10/Materials Mutant | -10/Mines Resources | -11 -10 -10 ----------- Run | Yrd Mat Min Matter Collected 1111 | 260 618 233 Remotely . | . . . Salvage Created 1007 | 63 820 124 Parts 57 | 2 40 15 Haulers Intercepted 1 | . 1 . Recyclers Shooed 2 | . 2 . Parts Field Recycled . | . . . Retrieved Matter . | . . . Parts Self-Destructed . | . . . Prevented . | . . . Kills | -11 -10 -10 ------- Run | Yrd Mat Min Combat Hostiles Destroyed 27 | . 15 12 Guns 16 | . 13 3 Cannons 4 | . 2 2 AOE 7 | . . 7 Classes Destroyed 7 | 1 5 1 Worker 1 | . 1 . Hauler 1 | . 1 . Recycler 3 | 1 2 . Watcher 1 | . 1 . Swarmer 12 | . 3 9 Grunt 13 | . 12 1 Assembled 2 | . . 2 Best Kill Streak 7 | 1 7 4 Combat Bots Only 6 | . 6 4 Max Kills in Single Turn 3 | 1 2 3 Gunslinging 1 | . 1 . Exploded 3 | . . 3 Melee . | . . . Uniques/NPCs Destroyed . | . . . Combat | -11 -10 -10 -------- Run | Yrd Mat Min Hostile Shots Fired 98 | . 46 52 Missed 24 | . 10 14 Damage Taken 1148 | . 506 642 Core 255 | . 51 204 Absorbed by Shields . | . . . Regen/Repaired (Parts) 30 | . 30 . Core Remaining (%) 100 | 100 . . Volleys Fired 91 | 6 60 25 Largest 2 | 1 2 2 Hottest 100 | 40 100 80 Shots Fired 160 | 6 110 44 Gun 106 | 6 75 25 Cannon 40 | . 27 13 Launcher 6 | . . 6 Special 8 | . 8 . Kinetic 36 | . 11 25 Thermal 60 | . 47 13 Explosive 6 | . . 6 Electromagnetic 58 | 6 52 . Robot Hit Streak 10 | 6 10 7 Robot Miss Streak 4 | . 3 4 Penetration Max . | . . . Secondary Targets 3 | . 3 . Max Gunslinging Chain 1 | . 1 . Shots Hit Robots 89 | 6 62 21 Core Hits 48 | 2 29 17 Critical Kills 1 | . . 1 Critical Parts Destroyed . | . . . Critical Strikes 1 | . . 1 Destroy 1 | . . 1 Melee Attacks . | . . . Impact . | . . . Slashing . | . . . Piercing . | . . . Sneak Attacks . | . . . Combat Hostiles . | . . . Follow-up Attacks . | . . . Damage Inflicted 1743 | 110 962 671 Guns 872 | 80 628 164 Cannons 350 | . 225 125 Explosions 521 | 30 109 382 Melee . | . . . Ramming . | . . . Kinetic 265 | . 101 164 Thermal 564 | 30 409 125 Explosive 382 | . . 382 Electromagnetic 532 | 80 452 . Impact . | . . . Slashing . | . . . Piercing . | . . . Highest Corruption 1 | . 1 1 Average Corruption 1 | . 1 1 Corruption Purged . | . . . Corruption Blocked . | . . . Effects 8 | . 3 5 Message Errors 3 | . 1 2 Matter Fused 1 | . 1 . Heat Flow Errors 3 | . 1 2 Alerts 1 | . . 1 Overload Shots . | . . . Overflow Damage 45 | . 7 38 Projectiles 2 | . 2 . Explosions 43 | . 5 38 Melee . | . . . Knockbacks . | . . . Impact . | . . . Kinetic . | . . . Secondary . | . . . Self-Inflicted Damage 214 | . 50 164 Shots 9 | . 2 7 Rammed . | . . . Targets Rammed . | . . . Kicked . | . . . Crushed . | . . . Highest Temperature 295 | . 295 247 Average Temperature 102 | . 116 55 Received Heat Transfer 255 | . 210 45 Effects 2 | . 2 . Energy Bleed 2 | . 2 . Siege Activations . | . . . Robots Corrupted . | . . . Combat Hostiles . | . . . Parts Fried 1 | . 1 . Impact Corruptions . | . . . Robots Melted . | . . . Combat Hostiles . | . . . Parts Melted 2 | . 2 . Heat Transferred 1115 | 50 806 259 Parts Sabotaged . | . . . Parts Stolen . | . . . Parts Stripped . | . . . Power Chain Reactions 4 | 1 3 . Alert | -11 -10 -10 ------- Run | Yrd Mat Min Peak Influence 301 | 5 301 267 Initial 30 | . 3 30 Average 112 | 1 118 116 Maximum Alert Level 1 | . 1 1 Low Security (%) 86 | 100 86 85 Level 1 13 | . 13 14 Level 2 . | . . . Level 3 . | . . . Level 4 . | . . . Level 5 . | . . . High Security . | . . . Max Security . | . . . Squads Dispatched 3 | . 3 . Investigation 2 | . 2 . Extermination . | . . . Reinforcement 1 | . 1 . Assault . | . . . Garrison . | . . . Intercept . | . . . Searches Triggered . | . . . Construction Impeded . | . . . Haulers Reinforced . | . . . Active Scanning Responses . | . . . Cargo Convoy Interrupts . | . . . Stealth | -11 -10 -10 --------- Run | Yrd Mat Min Distress Signals 4 | . 2 2 Communications Jammed . | . . . Distress Signals . | . . . Times Spotted 46 | . 30 16 Peak Tracking Total 5 | . 5 4 Tactical Retreats 2 | . 1 1 Traps | -11 -10 -10 ------- Run | Yrd Mat Min Traps Triggered 5 | . 5 . Indirectly . | . . . Trap Hack Attempts . | . . . Triggered . | . . . Disarmed . | . . . Reprogrammed . | . . . Reused . | . . . Traps Extracted . | . . . Installed . | . . . Triggered . | . . . Machines | -11 -10 -10 ---------- Run | Yrd Mat Min Machines Disabled 4 | . 2 2 Max in Single Turn 1 | . 1 1 Machines Repaired . | . . . Machines Dismantled . | . . . Machines Sabotaged . | . . . Overloaded Fab Kills . | . . . Hacking | -11 -10 -10 --------- Run | Yrd Mat Min Machines Accessed 7 | . 7 . Terminals 5 | . 5 . Fabricators . | . . . Repair Stations 1 | . 1 . Recycling Units 1 | . 1 . Scanalyzers . | . . . Garrison Access . | . . . Total Hacks 20 | . 20 . Successful 10 | . 10 . Failed 10 | . 10 . Catastrophic 1 | . 1 . Database Lockouts . | . . . Manual 17 | . 17 . Terminals 17 | . 17 . Fabricators . | . . . Repair Stations 2 | . 2 . Recycling Units 1 | . 1 . Scanalyzers . | . . . Garrison Access . | . . . Terminal Hacks 2 | . 2 . Robot Analysis 1 | . 1 . Unreport Threat 1 | . 1 . Fabricator Hacks . | . . . Repair Station Hacks 2 | . 2 . Scan Component 1 | . 1 . Repair 1 | . 1 . Recycling Unit Hacks 1 | . 1 . Report Inventory 1 | . 1 . Scanalyzer . | . . . Garrison Access Hacks . | . . . Unauthorized Hacks 5 | . 5 . Terminals 5 | . 5 . Botnet 5 | . 5 . Fabricators . | . . . Repair Stations . | . . . Recycling Units . | . . . Scanalyzers . | . . . Garrison Access . | . . . Data Cores Recovered . | . . . Used . | . . . Hacking Detections 6 | . 6 . Full Trace Events 2 | . 2 . Feedback Events 1 | . 1 . Corruption 1 | . 1 . Feedback Blocked . | . . . Robot Schematics Acquired . | . . . Robots Built . | . . . Authchips . | . . . Time . | . . . Total Robot Build Rating . | . . . Part Schematics Acquired . | . . . Parts Built . | . . . Authchips . | . . . Time . | . . . Total Part Build Rating . | . . . Parts Repaired 1 | . 1 . Time 26 | . 26 . Parts Recycled . | . . . Recycled Matter . | . . . Retrieved Matter . | . . . Retrieved Components . | . . . Parts Scanalyzed . | . . . Part Schematics Acquired . | . . . Parts Damaged . | . . . Bothacking | -11 -10 -10 ------------ Run | Yrd Mat Min Used RIF Installer . | . . . Robots Hacked . | . . . Non-combat . | . . . Combat . | . . . Robot Hacks Applied . | . . . Relay Couplers Released . | . . . Fabnet Peak Effective % . | . . . Robots Rewired . | . . . Allies Hacked . | . . . Hacks Repelled . | . . . Allies | -11 -10 -10 -------- Run | Yrd Mat Min Total Allies . | . . . Largest Group . | . . . Highest-Rated Group . | . . . Highest-Rated Ally . | . . . Total Orders . | . . . Ally Attacks . | . . . Total Damage . | . . . Kills . | . . . Allies Corrupted . | . . . Allies Melted . | . . . Intel | -11 -10 -10 ------- Run | Yrd Mat Min Robot Analysis Total 1 | . 1 . Derelict Logs Recovered 1 | . . 1 Drone Launches . | . . . Drone Recoveries . | . . . Exploration | -11 -10 -10 ------------- Run | Yrd Mat Min Turns Passed 2023 | 93 1155 775 Spaces Moved 920 | 65 567 288 Core 13 | 4 9 . Treads 70 | 10 60 . Legs 198 | . 198 . Wheels 639 | 51 300 288 Hover . | . . . Flight . | . . . Fastest Speed 50 | 50 80 110 Average Speed 131 | 101 145 110 Slowest Speed 320 | 160 320 110 Overloaded Moves . | . . . Propulsion Burnouts . | . . . Robots Hopped . | . . . Cave-ins Triggered . | . . . Exploration Rate (%) 40 | 5 72 45 Regions Visited 2 Branch Regions 1 Pre-discovered Areas . | . . . Known Exits Taken 1 | . 1 . Unknown Exits Taken 1 | 1 . . Scrap Searched 1 | . . 1 Spaces Dug 10 | . 2 8 Terrain Destroyed 60 | 2 7 51 Melee . | . . . Projectile 2 | . 2 . AOE 58 | 2 5 51 Terrain Rammed . | . . . Walls Destroyed . | . . . Machines Disabled . | . . . Actions | -11 -10 -10 --------- Run | Yrd Mat Min Total 1557 | 83 767 707 Wait 449 | . 91 358 Move 918 | 64 566 288 Hop . | . . . Pick Up 40 | 7 22 11 Fast Attach 6 | 5 . 1 Attach 15 | 1 11 3 Detach . | . . . Swap 21 | . 13 8 Drop 17 | . 4 13 Fire 91 | 6 60 25 Melee . | . . . Ram . | . . . Kick . | . . . Crush . | . . . Escape Stasis . | . . . Rewire . | . . . Trap . | . . . Miscellaneous . | . . . Route ------- -11/Scrapyard -10/Materials (discovered 2 exits: *Mat / *Min) -10/Mines (discovered 1 exit: *Mat) History --------- Turn | Location | Event 10 | -11/Scrapyard | Discovered new exit (range 15) 94 | -11/Scrapyard | Entered Materials 148 | -10/Materials | Discovered new exit (range 16) 323 | -10/Materials | Build established: Mutant 369 | -10/Materials | Discovered new exit (range 13) 529 | -10/Materials | Identified exit to Materials 668 | -10/Materials | Repaired Wheel 1247 | -10/Materials | Identified exit to Mines 1249 | -10/Materials | Entered Mines 1250 | -10/Mines | Assembled infested the area 1257 | -10/Mines | Met a Derelict bent on vengeance 1291 | -10/Mines | Core integrity fell below 50% 1751 | -10/Mines | Learned 4 Materials zone layouts 1758 | -10/Mines | Found a hidden stash of uninstalled traps 1817 | -10/Mines | Core integrity fell below 20% 1969 | -10/Mines | Discovered exit to Materials (range 9) 2024 | -10/Mines | Destroyed by D-53 Grenadier with Mini Grenade Launcher Last Messages --------------- 01908_ Destroyed Flight Unit. 01908_ Core Extractor disabled. 01908_ S-10 Pest destroyed. 01908_ U-05 Engineer lays Concrete. 01910_ S-10 Pest destroyed. 01911_ U-05 Engineer lays Concrete. 01913_ Dropped Assault Rifle. 01915_ U-05 Engineer lays Concrete. 01918_ U-05 Engineer builds a Wall. 01922_ U-05 Engineer lays Concrete. 01923_ The unstable cave ceiling collapses. 01923_ U-05 Engineer lays Concrete. 01925_ FU6PGNGX /IXL7EPR0BBC 01925_ U-05 Engineer builds a Wall. 01927_ Acquired 47 matter. 01929_ U-05 Engineer lays Concrete. 01929_ Acquired 21 matter. 01930_ U-05 Engineer lays Concrete. 01936_ U-05 Engineer builds a Wall. 01969_ EXIT=FOUND: MATERIALS Map ----- +----------------------------------------------------+ | ???????????????????????????????????????????? | | ???????????????????????????????????????#???? | | ??????????????????????????????????????? ???? | | ??????????????????????????????????????? ???? | | ??????????????????????????????????????# #??? | | ??????????????????????????????????????# #??? | | ??????????????????????????????????????# #??? | | ????????????????????????????######????# #??? | | ????????????????????????????# ????# #??? | | ????????????????????????????# ##### #??? | | ????????????????????????????# ## #??? | | ?????????????? ??????????# " ##!#??? | | ?????????????? ??????????# %%[# # #??? | | ??????????????? ?????????# " = #=#??? | | ????????????????# #??####??# [ =###? | | ?????????????????# ### ##?# # ## | | ???####??????????# #?######## # | | ??## ##??????????# ##??## ## | | ?## ##?????????# #?## # ## | | ?# #########??# ### % | | ?# ##??# [ | | ?# ##?## # | | ?# ##?# #### ## ## " | | ?## ## < """ #?## ####### ###"""""" | | ??## ##### """ #### # ##### #?####### | | ???####???## """ @ #???????? | | ???????????# d ######???????? | | ???????????# ######### ##????????????? | | ???????????## ###???????####?????????????? | | ????????????#####??????????????????????????? | | ???????????????????????????????????????????? | | ???????????????????????????????????????????? | | | | | | | | | | | | | | | | | | | | | | | | | | | | | | | | | | | | | +----------------------------------------------------+ Best States ------------- Heat Dissipation 25 Energy Generation 10 Energy Capacity 250 Matter Stores 417 Matter Capacity 500 Sight Range 16 Terrain Scan Density 10 Evasion (%) 44 Targeting Accuracy 5 Recoil Reduction 1 Item Schematics ----------------- None Robot Schematics ------------------ None Fabricated ------------ Nothing Alien Tech Used ----------------- None Achievements -------------- None Challenges ------------ None Game ------ Seed WeldingTargetDoublenader Manual? 0 Play Time 00:24:09 Cumulative 12.1 hours Start 2024.03.02 @ 20:18:04 End 2024.03.02 @ 20:39:08 Sessions 1 Manual Loads 0 Difficulty Rogue Special Mode None Game No. 11 Rogue 11 Adventurer 0 Explorer 0 Win Type - Total 0 Types 0/0/0/0/0/0/0/0/0 Lore% 19 Gallery% 16 Achievement% 17 Wizard Run 0 Options --------- Layout 1 ASCII 0 Keyboard 0 Movement Numpad Keybinds 0 Fullscreen 2 Font 24/Smallcaps Map View 50x35 Zoom Use 0% Tactical HUD 1 Map Filters NONE Filters NONE Steam 0 RUN: 871e72f2-e677-4abe-9ba5-1e49be3d1605